[Event "Titled Tuesday Blitz July 18 Late 2023"]
[White "Zelbel, Patrick"]
[Black "ArtemDyachuk"]
[WhiteFideId "24624322"]
[WhiteElo "2786"]
[BlackElo "2536"]
[Result "1-0"]
[Round "5"]
[TimeControl "180+2"]
[Date "2023.07.18"]
[WhiteClock "0:00:33"]
[BlackClock "0:00:00"]
[Board "35"]

1. e4 {[%clk 0:03:00]}  c6 {[%clk 0:03:00]} 2. Nf3 {[%clk 0:02:56]}  d5 {[%clk 0:03:00]} 3. d3 {[%clk 0:02:56]}  Qc7 {[%clk 0:02:55]} 4. Nc3 {[%clk 0:02:54]}  Nf6 {[%clk 0:02:53]} 5. e5 {[%clk 0:02:46]}  Nfd7 {[%clk 0:02:53]} 6. e6 {[%clk 0:02:36]}  fxe6 {[%clk 0:02:51]} 7. g3 {[%clk 0:02:36]}  Nf6 {[%clk 0:02:48]} 8. d4 {[%clk 0:02:32]}  g6 {[%clk 0:02:17]} 9. Bf4 {[%clk 0:02:32]}  Qb6 {[%clk 0:02:16]} 10. Qd3 {[%clk 0:02:23]}  Bg7 {[%clk 0:02:13]} 11. Bg2 {[%clk 0:02:24]}  O-O {[%clk 0:02:11]} 12. O-O {[%clk 0:02:13]}  Qxb2 {[%clk 0:01:57]} 13. Rab1 {[%clk 0:02:12]}  Qa3 {[%clk 0:01:56]} 14. Rfe1 {[%clk 0:02:03]}  Nbd7 {[%clk 0:01:29]} 15. Rb3 {[%clk 0:02:03]}  Qa6 {[%clk 0:01:26]} 16. Ng5 {[%clk 0:02:04]}  Qxd3 {[%clk 0:01:22]} 17. cxd3 {[%clk 0:02:05]}  Nb6 {[%clk 0:01:16]} 18. Bh3 {[%clk 0:02:01]}  Nh5 {[%clk 0:00:45]} 19. Ne2 {[%clk 0:02:00]}  e5 {[%clk 0:00:41]} 20. Bxc8 {[%clk 0:01:59]}  Raxc8 {[%clk 0:00:41]} 21. Bxe5 {[%clk 0:01:59]}  Bxe5 {[%clk 0:00:35]} 22. dxe5 {[%clk 0:02:00]}  Ng7 {[%clk 0:00:35]} 23. Nf4 {[%clk 0:01:55]}  Rxf4 {[%clk 0:00:29]} 24. gxf4 {[%clk 0:01:55]}  h6 {[%clk 0:00:30]} 25. Nh3 {[%clk 0:01:50]}  Ne6 {[%clk 0:00:28]} 26. Kg2 {[%clk 0:01:51]}  Rf8 {[%clk 0:00:28]} 27. Kg3 {[%clk 0:01:48]}  Nd4 {[%clk 0:00:28]} 28. Rb2 {[%clk 0:01:38]}  e6 {[%clk 0:00:21]} 29. a4 {[%clk 0:01:33]}  Nxa4 {[%clk 0:00:12]} 30. Rxb7 {[%clk 0:01:34]}  Nc5 {[%clk 0:00:12]} 31. Rxa7 {[%clk 0:01:35]}  Nxd3 {[%clk 0:00:12]} 32. Rb1 {[%clk 0:01:24]}  Nf5+ {[%clk 0:00:08]} 33. Kf3 {[%clk 0:01:23]}  c5 {[%clk 0:00:08]} 34. Rg1 {[%clk 0:01:15]}  Re8 {[%clk 0:00:03]} 35. Rxg6+ {[%clk 0:01:14]}  Kh8 {[%clk 0:00:03]} 36. Rf6 {[%clk 0:01:03]}  c4 {[%clk 0:00:03]} 37. Rc7 {[%clk 0:01:02]}  Nd4+ {[%clk 0:00:02]} 38. Kg4 {[%clk 0:00:57]}  Rg8+ {[%clk 0:00:01]} 39. Kh5 {[%clk 0:00:55]}  Nf5 {[%clk 0:00:01]} 40. Rxf5 {[%clk 0:00:47]}  exf5 {[%clk 0:00:02]} 41. Kxh6 {[%clk 0:00:47]}  Re8 {[%clk 0:00:01]} 42. Ng5 {[%clk 0:00:40]}  Ra8 {[%clk 0:00:00]} 43. e6 {[%clk 0:00:33]} 1-0


[Site "https://www.chess.com"]

[Event "Titled Tuesday Blitz July 18 Late 2023"]
[White "NigelDwarf"]
[Black "Priasmoro, Novendra"]
[BlackFideId "7105029"]
[WhiteElo "2517"]
[BlackElo "2763"]
[Result "0-1"]
[Round "5"]
[TimeControl "180+2"]
[Date "2023.07.18"]
[WhiteClock "0:00:08"]
[BlackClock "0:00:59"]
[Board "38"]

1. Nf3 {[%clk 0:02:57]}  Nf6 {[%clk 0:02:59]} 2. c4 {[%clk 0:02:56]}  e6 {[%clk 0:02:59]} 3. Nc3 {[%clk 0:02:56]}  d5 {[%clk 0:02:58]} 4. e3 {[%clk 0:02:53]}  Be7 {[%clk 0:02:58]} 5. Be2 {[%clk 0:02:51]}  O-O {[%clk 0:02:58]} 6. O-O {[%clk 0:02:51]}  c5 {[%clk 0:02:58]} 7. cxd5 {[%clk 0:02:50]}  Nxd5 {[%clk 0:02:59]} 8. b3 {[%clk 0:02:50]}  Nc6 {[%clk 0:02:58]} 9. Nxd5 {[%clk 0:02:49]}  exd5 {[%clk 0:02:52]} 10. Ba3 {[%clk 0:02:48]}  Qa5 {[%clk 0:02:42]} 11. Bb2 {[%clk 0:02:48]}  Be6 {[%clk 0:02:40]} 12. d4 {[%clk 0:02:45]}  Bf6 {[%clk 0:02:40]} 13. Qe1 {[%clk 0:02:22]}  Qxe1 {[%clk 0:02:32]} 14. Rfxe1 {[%clk 0:02:23]}  cxd4 {[%clk 0:02:33]} 15. Nxd4 {[%clk 0:02:15]}  Nxd4 {[%clk 0:02:21]} 16. Bxd4 {[%clk 0:02:14]}  Bxd4 {[%clk 0:02:21]} 17. exd4 {[%clk 0:02:15]}  Rac8 {[%clk 0:02:19]} 18. Rac1 {[%clk 0:02:15]}  Rfe8 {[%clk 0:02:14]} 19. Bf3 {[%clk 0:02:13]}  g5 {[%clk 0:02:02]} 20. h3 {[%clk 0:02:01]}  Kg7 {[%clk 0:02:00]} 21. Kh2 {[%clk 0:01:54]}  Kg6 {[%clk 0:01:59]} 22. Rc5 {[%clk 0:01:50]}  b6 {[%clk 0:01:45]} 23. Rcc1 {[%clk 0:01:38]}  h5 {[%clk 0:01:45]} 24. g3 {[%clk 0:01:09]}  g4 {[%clk 0:01:31]} 25. Be2 {[%clk 0:01:02]}  Bf5 {[%clk 0:01:28]} 26. hxg4 {[%clk 0:00:51]}  hxg4 {[%clk 0:01:27]} 27. Ba6 {[%clk 0:00:42]}  Rxc1 {[%clk 0:01:21]} 28. Rxc1 {[%clk 0:00:42]}  Be4 {[%clk 0:01:17]} 29. Rc6+ {[%clk 0:00:34]}  Kg5 {[%clk 0:01:16]} 30. Rc8 {[%clk 0:00:31]}  Re6 {[%clk 0:01:14]} 31. Rg8+ {[%clk 0:00:27]}  Bg6 {[%clk 0:01:12]} 32. Bb7 {[%clk 0:00:22]}  Re2 {[%clk 0:01:10]} 33. Kg2 {[%clk 0:00:18]}  Rxa2 {[%clk 0:01:04]} 34. Bxd5 {[%clk 0:00:17]}  Kf6 {[%clk 0:01:04]} 35. Bc4 {[%clk 0:00:15]}  a6 {[%clk 0:01:03]} 36. Re8 {[%clk 0:00:14]}  b5 {[%clk 0:01:03]} 37. Be2 {[%clk 0:00:13]}  Bf5 {[%clk 0:01:00]} 38. Re5 {[%clk 0:00:13]}  Rd2 {[%clk 0:01:00]} 39. Bxb5 {[%clk 0:00:09]}  axb5 {[%clk 0:00:59]} 40. Rxb5 {[%clk 0:00:10]}  Rxd4 {[%clk 0:01:00]} 41. b4 {[%clk 0:00:10]}  Be4+ {[%clk 0:00:59]} 42. Kf1 {[%clk 0:00:08]}  Bd3+ {[%clk 0:00:59]} 0-1


[Site "https://www.chess.com"]

[Event "Titled Tuesday Blitz July 18 Late 2023"]
[White "Riehle, Marco"]
[Black "ArchibaldCerveza29"]
[WhiteFideId "12904392"]
[WhiteElo "2731"]
[BlackElo "2451"]
[Result "1-0"]
[Round "5"]
[TimeControl "180+2"]
[Date "2023.07.18"]
[WhiteClock "0:01:29"]
[BlackClock "0:00:00"]
[Board "42"]

1. e4 {[%clk 0:02:58]}  e5 {[%clk 0:03:00]} 2. Nf3 {[%clk 0:02:56]}  Nc6 {[%clk 0:03:00]} 3. d4 {[%clk 0:02:55]}  exd4 {[%clk 0:02:59]} 4. Bc4 {[%clk 0:02:55]}  Nf6 {[%clk 0:02:59]} 5. O-O {[%clk 0:02:56]}  Nxe4 {[%clk 0:02:59]} 6. Nc3 {[%clk 0:02:56]}  Nxc3 {[%clk 0:02:58]} 7. bxc3 {[%clk 0:02:56]}  d5 {[%clk 0:02:58]} 8. Bd3 {[%clk 0:02:52]}  Be7 {[%clk 0:02:52]} 9. Re1 {[%clk 0:02:52]}  O-O {[%clk 0:02:51]} 10. cxd4 {[%clk 0:02:52]}  Bg4 {[%clk 0:02:45]} 11. c3 {[%clk 0:02:51]}  Re8 {[%clk 0:02:38]} 12. h3 {[%clk 0:02:49]}  Bh5 {[%clk 0:02:37]} 13. Bf4 {[%clk 0:02:49]}  Bf8 {[%clk 0:01:52]} 14. Rxe8 {[%clk 0:02:42]}  Qxe8 {[%clk 0:01:53]} 15. Bxc7 {[%clk 0:02:42]}  Rc8 {[%clk 0:01:49]} 16. Bg3 {[%clk 0:02:39]}  Na5 {[%clk 0:01:32]} 17. Bxh7+ {[%clk 0:02:32]}  Kxh7 {[%clk 0:01:33]} 18. Ng5+ {[%clk 0:02:32]}  Kg6 {[%clk 0:01:33]} 19. Qd3+ {[%clk 0:02:27]}  f5 {[%clk 0:00:56]} 20. h4 {[%clk 0:02:27]}  Qe2 {[%clk 0:00:46]} 21. Qxe2 {[%clk 0:02:18]}  Bxe2 {[%clk 0:00:47]} 22. Re1 {[%clk 0:02:19]}  Re8 {[%clk 0:00:47]} 23. Nh3 {[%clk 0:02:09]}  Bb5 {[%clk 0:00:36]} 24. Be5 {[%clk 0:02:06]}  Bc4 {[%clk 0:00:25]} 25. Re3 {[%clk 0:01:58]}  Bxa2 {[%clk 0:00:20]} 26. Rg3+ {[%clk 0:01:54]}  Kf7 {[%clk 0:00:20]} 27. Ng5+ {[%clk 0:01:53]}  Ke7 {[%clk 0:00:20]} 28. Nh7 {[%clk 0:01:50]}  Nc6 {[%clk 0:00:15]} 29. Nxf8 {[%clk 0:01:50]}  Rxf8 {[%clk 0:00:16]} 30. Bxg7 {[%clk 0:01:50]}  Rf7 {[%clk 0:00:11]} 31. h5 {[%clk 0:01:50]}  f4 {[%clk 0:00:06]} 32. Rg4 {[%clk 0:01:47]}  Rf5 {[%clk 0:00:03]} 33. Rh4 {[%clk 0:01:40]}  Bb1 {[%clk 0:00:02]} 34. h6 {[%clk 0:01:39]}  Rg5 {[%clk 0:00:03]} 35. h7 {[%clk 0:01:37]}  Bxh7 {[%clk 0:00:03]} 36. Rxh7 {[%clk 0:01:37]}  Kd6 {[%clk 0:00:03]} 37. Bf8+ {[%clk 0:01:35]}  Ke6 {[%clk 0:00:04]} 38. Rxb7 {[%clk 0:01:36]}  Rf5 {[%clk 0:00:01]} 39. Bc5 {[%clk 0:01:33]}  Rf7 {[%clk 0:00:00]} 40. Rb1 {[%clk 0:01:29]} 1-0


[Site "https://www.chess.com"]

[Event "Titled Tuesday Blitz July 18 Late 2023"]
[White "Jorajuria Mendoza, Algol"]
[Black "Nasuta, Grzegorz"]
[WhiteFideId "5128897"]
[BlackFideId "1141686"]
[WhiteElo "2436"]
[BlackElo "2726"]
[Result "0-1"]
[Round "5"]
[TimeControl "180+2"]
[Date "2023.07.18"]
[WhiteClock "0:00:06"]
[BlackClock "0:00:06"]
[Board "43"]

1. e4 {[%clk 0:03:00]}  c5 {[%clk 0:02:58]} 2. Nf3 {[%clk 0:02:58]}  e6 {[%clk 0:02:52]} 3. g3 {[%clk 0:02:57]}  Nc6 {[%clk 0:02:47]} 4. Bg2 {[%clk 0:02:56]}  Nf6 {[%clk 0:02:44]} 5. Qe2 {[%clk 0:02:54]}  e5 {[%clk 0:02:45]} 6. Nc3 {[%clk 0:02:50]}  Be7 {[%clk 0:02:42]} 7. d3 {[%clk 0:02:50]}  O-O {[%clk 0:02:41]} 8. Bg5 {[%clk 0:02:46]}  d6 {[%clk 0:02:35]} 9. O-O {[%clk 0:02:43]}  Be6 {[%clk 0:02:34]} 10. h3 {[%clk 0:02:34]}  a6 {[%clk 0:02:30]} 11. a4 {[%clk 0:02:26]}  Rc8 {[%clk 0:02:22]} 12. Kh2 {[%clk 0:02:13]}  Ng4+ {[%clk 0:02:02]} 13. hxg4 {[%clk 0:02:12]}  Bxg5 {[%clk 0:02:03]} 14. Bh3 {[%clk 0:01:45]}  h6 {[%clk 0:01:25]} 15. Nd5 {[%clk 0:01:16]}  Re8 {[%clk 0:00:49]} 16. Ne3 {[%clk 0:00:48]}  Bxe3 {[%clk 0:00:37]} 17. fxe3 {[%clk 0:00:46]}  g6 {[%clk 0:00:13]} 18. Nh4 {[%clk 0:00:41]}  Kg7 {[%clk 0:00:13]} 19. Rf2 {[%clk 0:00:41]}  Qd7 {[%clk 0:00:11]} 20. Nf5+ {[%clk 0:00:30]}  Kh7 {[%clk 0:00:08]} 21. Raf1 {[%clk 0:00:28]}  Qd8 {[%clk 0:00:06]} 22. Nh4 {[%clk 0:00:26]}  Rc7 {[%clk 0:00:06]} 23. Rf6 {[%clk 0:00:22]}  Kg7 {[%clk 0:00:06]} 24. Qf3 {[%clk 0:00:20]}  Rce7 {[%clk 0:00:06]} 25. Rxe6 {[%clk 0:00:18]}  fxe6 {[%clk 0:00:05]} 26. Qf6+ {[%clk 0:00:18]}  Kh7 {[%clk 0:00:05]} 27. Nxg6 {[%clk 0:00:16]}  Rg7 {[%clk 0:00:04]} 28. Nf8+ {[%clk 0:00:15]}  Kg8 {[%clk 0:00:04]} 29. Qxd8 {[%clk 0:00:11]}  Nxd8 {[%clk 0:00:05]} 30. g5 {[%clk 0:00:09]}  Rxf8 {[%clk 0:00:05]} 31. Rxf8+ {[%clk 0:00:06]}  Kxf8 {[%clk 0:00:06]} 0-1


[Site "https://www.chess.com"]

[Event "Titled Tuesday Blitz July 18 Late 2023"]
[White "Wu, Sibo"]
[Black "Papp, Levente"]
[WhiteFideId "8606048"]
[BlackFideId "751243"]
[WhiteElo "2436"]
[BlackElo "2714"]
[Result "0-1"]
[Round "5"]
[TimeControl "180+2"]
[Date "2023.07.18"]
[WhiteClock "0:00:00"]
[BlackClock "0:00:09"]
[Board "44"]

1. d4 {[%clk 0:03:00]}  e6 {[%clk 0:03:00]} 2. Bf4 {[%clk 0:03:00]}  f5 {[%clk 0:02:55]} 3. e3 {[%clk 0:02:57]}  Nf6 {[%clk 0:02:55]} 4. h4 {[%clk 0:02:55]}  Be7 {[%clk 0:02:52]} 5. h5 {[%clk 0:02:55]}  b6 {[%clk 0:02:42]} 6. h6 {[%clk 0:02:53]}  g6 {[%clk 0:02:40]} 7. Nf3 {[%clk 0:02:53]}  Bb7 {[%clk 0:02:38]} 8. c3 {[%clk 0:02:44]}  Ne4 {[%clk 0:02:30]} 9. Nbd2 {[%clk 0:02:43]}  Bf6 {[%clk 0:02:16]} 10. Bd3 {[%clk 0:02:32]}  d5 {[%clk 0:02:13]} 11. Ne5 {[%clk 0:02:24]}  c6 {[%clk 0:01:30]} 12. Ndf3 {[%clk 0:02:09]}  O-O {[%clk 0:01:22]} 13. g4 {[%clk 0:02:00]}  Nd7 {[%clk 0:01:15]} 14. Rg1 {[%clk 0:01:53]}  Nxe5 {[%clk 0:01:13]} 15. Nxe5 {[%clk 0:01:52]}  Bxe5 {[%clk 0:00:59]} 16. Bxe5 {[%clk 0:01:52]}  Qh4 {[%clk 0:00:59]} 17. Bxe4 {[%clk 0:01:44]}  fxe4 {[%clk 0:00:59]} 18. Qe2 {[%clk 0:01:37]}  Ba6 {[%clk 0:00:53]} 19. Qd2 {[%clk 0:01:11]}  Rac8 {[%clk 0:00:32]} 20. g5 {[%clk 0:01:03]}  Qh5 {[%clk 0:00:30]} 21. b3 {[%clk 0:00:45]}  c5 {[%clk 0:00:30]} 22. Qb2 {[%clk 0:00:41]}  cxd4 {[%clk 0:00:28]} 23. Bxd4 {[%clk 0:00:38]}  Rf5 {[%clk 0:00:24]} 24. c4 {[%clk 0:00:36]}  Rxg5 {[%clk 0:00:15]} 25. Rxg5 {[%clk 0:00:29]}  Qxg5 {[%clk 0:00:16]} 26. O-O-O {[%clk 0:00:26]}  dxc4 {[%clk 0:00:16]} 27. Bxb6 {[%clk 0:00:22]}  c3 {[%clk 0:00:13]} 28. Qa3 {[%clk 0:00:20]}  c2 {[%clk 0:00:11]} 29. Re1 {[%clk 0:00:09]}  Qe5 {[%clk 0:00:08]} 30. Bd4 {[%clk 0:00:06]}  Qb5 {[%clk 0:00:06]} 31. Qe7 {[%clk 0:00:06]}  Qb7 {[%clk 0:00:06]} 32. Qxe6+ {[%clk 0:00:06]}  Qf7 {[%clk 0:00:07]} 33. Qe5 {[%clk 0:00:06]}  Kf8 {[%clk 0:00:07]} 34. Qh8+ {[%clk 0:00:06]}  Ke7 {[%clk 0:00:08]} 35. Qe5+ {[%clk 0:00:07]}  Qe6 {[%clk 0:00:08]} 36. Qg7+ {[%clk 0:00:07]}  Kd6 {[%clk 0:00:09]} 37. Bb2 {[%clk 0:00:06]}  Bd3 {[%clk 0:00:09]} 38. Qd4+ {[%clk 0:00:06]}  Kc6 {[%clk 0:00:10]} 39. Qc3+ {[%clk 0:00:06]}  Kb7 {[%clk 0:00:10]} 40. Qb4+ {[%clk 0:00:07]}  Qb6 {[%clk 0:00:10]} 41. Qe7+ {[%clk 0:00:07]}  Rc7 {[%clk 0:00:11]} 42. Qe5 {[%clk 0:00:07]}  Qa6 {[%clk 0:00:11]} 43. Qd5+ {[%clk 0:00:06]}  Qc6 {[%clk 0:00:11]} 44. Qe5 {[%clk 0:00:06]}  Rf7 {[%clk 0:00:11]} 45. f4 {[%clk 0:00:05]}  exf3 {[%clk 0:00:10]} 46. Qd4 {[%clk 0:00:05]}  f2 {[%clk 0:00:10]} 47. Qb4+ {[%clk 0:00:00]}  Qb6 {[%clk 0:00:09]} 0-1


[Site "https://www.chess.com"]

[Event "Titled Tuesday Blitz July 18 Late 2023"]
[White "StarkyNZ"]
[Black "Rastbod, Ali"]
[BlackFideId "12567477"]
[WhiteElo "2319"]
[BlackElo "2697"]
[Result "0-1"]
[Round "5"]
[TimeControl "180+2"]
[Date "2023.07.18"]
[WhiteClock "0:00:26"]
[BlackClock "0:00:08"]
[Board "50"]

1. c4 {[%clk 0:03:00]}  e5 {[%clk 0:02:58]} 2. Nc3 {[%clk 0:03:00]}  Bb4 {[%clk 0:02:58]} 3. Nd5 {[%clk 0:03:00]}  a5 {[%clk 0:02:56]} 4. Nxb4 {[%clk 0:02:57]}  axb4 {[%clk 0:02:56]} 5. a3 {[%clk 0:02:58]}  Nf6 {[%clk 0:02:54]} 6. d4 {[%clk 0:02:54]}  exd4 {[%clk 0:02:52]} 7. Qxd4 {[%clk 0:02:54]}  O-O {[%clk 0:02:51]} 8. Nf3 {[%clk 0:02:53]}  Nc6 {[%clk 0:02:50]} 9. Qh4 {[%clk 0:02:52]}  d5 {[%clk 0:02:46]} 10. Bg5 {[%clk 0:02:49]}  dxc4 {[%clk 0:02:37]} 11. Qxc4 {[%clk 0:02:48]}  Be6 {[%clk 0:02:27]} 12. Qc2 {[%clk 0:02:26]}  bxa3 {[%clk 0:02:09]} 13. Rxa3 {[%clk 0:02:23]}  Rxa3 {[%clk 0:02:04]} 14. bxa3 {[%clk 0:02:23]}  Nd4 {[%clk 0:02:04]} 15. Qb2 {[%clk 0:02:21]}  c5 {[%clk 0:01:58]} 16. e3 {[%clk 0:02:20]}  Nxf3+ {[%clk 0:01:52]} 17. gxf3 {[%clk 0:02:20]}  Qa5+ {[%clk 0:01:53]} 18. Qd2 {[%clk 0:02:09]}  Qxa3 {[%clk 0:01:53]} 19. Bxf6 {[%clk 0:02:08]}  gxf6 {[%clk 0:01:54]} 20. Be2 {[%clk 0:01:47]}  Qa1+ {[%clk 0:01:29]} 21. Bd1 {[%clk 0:01:38]}  Bb3 {[%clk 0:01:21]} 22. O-O {[%clk 0:01:37]}  Bxd1 {[%clk 0:01:16]} 23. Rxd1 {[%clk 0:01:38]}  Qe5 {[%clk 0:01:17]} 24. Qd7 {[%clk 0:01:34]}  Rb8 {[%clk 0:01:11]} 25. Rd5 {[%clk 0:01:33]}  Qe6 {[%clk 0:00:39]} 26. Qxe6 {[%clk 0:01:14]}  fxe6 {[%clk 0:00:40]} 27. Rxc5 {[%clk 0:01:14]}  b5 {[%clk 0:00:40]} 28. Rc2 {[%clk 0:01:10]}  e5 {[%clk 0:00:38]} 29. Kg2 {[%clk 0:01:09]}  Kf7 {[%clk 0:00:34]} 30. Kg3 {[%clk 0:01:06]}  b4 {[%clk 0:00:15]} 31. f4 {[%clk 0:01:02]}  b3 {[%clk 0:00:15]} 32. Rb2 {[%clk 0:01:02]}  Ke6 {[%clk 0:00:09]} 33. e4 {[%clk 0:01:01]}  Kd6 {[%clk 0:00:07]} 34. Kg4 {[%clk 0:00:59]}  Kc5 {[%clk 0:00:07]} 35. Kf5 {[%clk 0:00:55]}  exf4 {[%clk 0:00:07]} 36. Kxf4 {[%clk 0:00:55]}  Kd4 {[%clk 0:00:07]} 37. Kf5 {[%clk 0:00:53]}  Rb5+ {[%clk 0:00:07]} 38. Kxf6 {[%clk 0:00:52]}  Kxe4 {[%clk 0:00:08]} 39. h4 {[%clk 0:00:49]}  h5 {[%clk 0:00:07]} 40. Kg6 {[%clk 0:00:46]}  Kf3 {[%clk 0:00:08]} 41. Kh6 {[%clk 0:00:43]}  Kg4 {[%clk 0:00:07]} 42. Kg6 {[%clk 0:00:33]}  Rb6+ {[%clk 0:00:07]} 43. Kh7 {[%clk 0:00:32]}  Kxh4 {[%clk 0:00:08]} 44. f4 {[%clk 0:00:31]}  Kg4 {[%clk 0:00:08]} 45. f5 {[%clk 0:00:26]}  Kxf5 {[%clk 0:00:08]} 0-1


[Site "https://www.chess.com"]

[Event "Titled Tuesday Blitz July 18 Late 2023"]
[White "Vetoshko, Volodymyr"]
[Black "SicilianPanzer"]
[WhiteFideId "14122480"]
[WhiteElo "2697"]
[BlackElo "2302"]
[Result "1-0"]
[Round "5"]
[TimeControl "180+2"]
[Date "2023.07.18"]
[WhiteClock "0:00:35"]
[BlackClock "0:00:02"]
[Board "51"]

1. b3 {[%clk 0:03:00]}  Nf6 {[%clk 0:02:58]} 2. Bb2 {[%clk 0:03:01]}  g6 {[%clk 0:02:58]} 3. Nf3 {[%clk 0:03:00]}  Bg7 {[%clk 0:02:58]} 4. g3 {[%clk 0:03:01]}  a5 {[%clk 0:02:57]} 5. Bg2 {[%clk 0:02:56]}  a4 {[%clk 0:02:57]} 6. b4 {[%clk 0:02:57]}  O-O {[%clk 0:02:55]} 7. O-O {[%clk 0:02:56]}  d6 {[%clk 0:02:50]} 8. d4 {[%clk 0:02:50]}  c6 {[%clk 0:02:20]} 9. a3 {[%clk 0:02:49]}  Nbd7 {[%clk 0:02:15]} 10. c4 {[%clk 0:02:48]}  Nb6 {[%clk 0:02:13]} 11. Nbd2 {[%clk 0:02:42]}  Bf5 {[%clk 0:02:09]} 12. Nh4 {[%clk 0:02:31]}  Be6 {[%clk 0:02:08]} 13. Qc2 {[%clk 0:02:28]}  Qc8 {[%clk 0:01:25]} 14. Rfe1 {[%clk 0:02:21]}  Bh3 {[%clk 0:01:14]} 15. Bh1 {[%clk 0:02:21]}  c5 {[%clk 0:01:13]} 16. bxc5 {[%clk 0:02:21]}  dxc5 {[%clk 0:01:12]} 17. d5 {[%clk 0:02:21]}  e6 {[%clk 0:00:54]} 18. e4 {[%clk 0:02:17]}  exd5 {[%clk 0:00:51]} 19. cxd5 {[%clk 0:02:03]}  Qc7 {[%clk 0:00:32]} 20. d6 {[%clk 0:01:55]}  Qc8 {[%clk 0:00:14]} 21. e5 {[%clk 0:01:55]}  Nfd7 {[%clk 0:00:11]} 22. f4 {[%clk 0:01:25]}  Be6 {[%clk 0:00:10]} 23. f5 {[%clk 0:01:19]}  Bd5 {[%clk 0:00:09]} 24. e6 {[%clk 0:00:54]}  Nf6 {[%clk 0:00:08]} 25. Bxd5 {[%clk 0:00:43]}  Nbxd5 {[%clk 0:00:09]} 26. d7 {[%clk 0:00:43]}  Qd8 {[%clk 0:00:07]} 27. Qxc5 {[%clk 0:00:35]}  Rc8 {[%clk 0:00:02]} 1-0


[Site "https://www.chess.com"]

[Event "Titled Tuesday Blitz July 18 Late 2023"]
[White "Rustemov, Alexander"]
[Black "Besedes, Danilo"]
[WhiteFideId "4119002"]
[BlackFideId "946796"]
[WhiteElo "2862"]
[BlackElo "2532"]
[Result "0-1"]
[Round "5"]
[TimeControl "180+2"]
[Date "2023.07.18"]
[WhiteClock "0:00:20"]
[BlackClock "0:01:42"]
[Board "54"]

1. d4 {[%clk 0:03:00]}  g6 {[%clk 0:02:59]} 2. c4 {[%clk 0:03:01]}  Bg7 {[%clk 0:03:00]} 3. Nf3 {[%clk 0:03:01]}  c6 {[%clk 0:02:56]} 4. e4 {[%clk 0:02:59]}  d5 {[%clk 0:02:56]} 5. exd5 {[%clk 0:02:55]}  cxd5 {[%clk 0:02:56]} 6. cxd5 {[%clk 0:02:50]}  Qxd5 {[%clk 0:02:56]} 7. Nc3 {[%clk 0:02:50]}  Qd8 {[%clk 0:02:56]} 8. Bc4 {[%clk 0:02:46]}  Nf6 {[%clk 0:02:56]} 9. O-O {[%clk 0:02:46]}  O-O {[%clk 0:02:56]} 10. Ne5 {[%clk 0:02:39]}  Nc6 {[%clk 0:02:51]} 11. Nxc6 {[%clk 0:02:24]}  bxc6 {[%clk 0:02:52]} 12. Re1 {[%clk 0:02:17]}  Nd5 {[%clk 0:02:47]} 13. Ne4 {[%clk 0:02:13]}  Rb8 {[%clk 0:02:39]} 14. b3 {[%clk 0:01:55]}  Bf5 {[%clk 0:02:31]} 15. Bg5 {[%clk 0:01:52]}  Bxe4 {[%clk 0:02:23]} 16. Rxe4 {[%clk 0:01:52]}  Nc3 {[%clk 0:02:23]} 17. Bxe7 {[%clk 0:01:43]}  Nxd1 {[%clk 0:02:22]} 18. Bxd8 {[%clk 0:01:41]}  Nc3 {[%clk 0:02:21]} 19. Re7 {[%clk 0:01:14]}  Rbxd8 {[%clk 0:02:17]} 20. Rxa7 {[%clk 0:01:13]}  Bxd4 {[%clk 0:02:16]} 21. Rc7 {[%clk 0:01:07]}  Ne2+ {[%clk 0:02:16]} 22. Bxe2 {[%clk 0:01:06]}  Bxa1 {[%clk 0:02:16]} 23. g3 {[%clk 0:01:02]}  Rd2 {[%clk 0:02:15]} 24. Kf1 {[%clk 0:01:00]}  Rxa2 {[%clk 0:02:14]} 25. Rxc6 {[%clk 0:00:45]}  Bd4 {[%clk 0:02:13]} 26. Rd6 {[%clk 0:00:43]}  Ba7 {[%clk 0:02:12]} 27. Rd7 {[%clk 0:00:43]}  Bc5 {[%clk 0:02:05]} 28. Rc7 {[%clk 0:00:43]}  Bd4 {[%clk 0:01:59]} 29. Rd7 {[%clk 0:00:43]}  Bf6 {[%clk 0:01:59]} 30. Bc4 {[%clk 0:00:42]}  Kg7 {[%clk 0:01:55]} 31. h4 {[%clk 0:00:42]}  h5 {[%clk 0:01:55]} 32. Kg2 {[%clk 0:00:42]}  Bc3 {[%clk 0:01:53]} 33. Kf1 {[%clk 0:00:37]}  Bb4 {[%clk 0:01:52]} 34. Rd5 {[%clk 0:00:36]}  Rc2 {[%clk 0:01:52]} 35. Rb5 {[%clk 0:00:35]}  Bd6 {[%clk 0:01:47]} 36. Kg2 {[%clk 0:00:35]}  Rc8 {[%clk 0:01:46]} 37. Rb7 {[%clk 0:00:34]}  Rc7 {[%clk 0:01:46]} 38. Rb5 {[%clk 0:00:26]}  R2xc4 {[%clk 0:01:45]} 39. bxc4 {[%clk 0:00:25]}  Rxc4 {[%clk 0:01:46]} 40. Rb2 {[%clk 0:00:26]}  Be5 {[%clk 0:01:45]} 41. Re2 {[%clk 0:00:25]}  Bf6 {[%clk 0:01:46]} 42. Rd2 {[%clk 0:00:25]}  Rb4 {[%clk 0:01:46]} 43. Re2 {[%clk 0:00:24]}  Rb2 {[%clk 0:01:47]} 44. Re4 {[%clk 0:00:24]}  Bd8 {[%clk 0:01:46]} 45. Rf4 {[%clk 0:00:23]}  Bb6 {[%clk 0:01:46]} 46. Kf1 {[%clk 0:00:23]}  f5 {[%clk 0:01:45]} 47. Rf3 {[%clk 0:00:23]}  Kf6 {[%clk 0:01:45]} 48. Rf4 {[%clk 0:00:23]}  Ke5 {[%clk 0:01:44]} 49. Kg2 {[%clk 0:00:24]}  Rxf2+ {[%clk 0:01:39]} 50. Rxf2 {[%clk 0:00:24]}  Bxf2 {[%clk 0:01:40]} 51. Kxf2 {[%clk 0:00:24]}  Ke4 {[%clk 0:01:40]} 52. Ke2 {[%clk 0:00:25]}  f4 {[%clk 0:01:41]} 53. Kf2 {[%clk 0:00:24]}  fxg3+ {[%clk 0:01:39]} 54. Kxg3 {[%clk 0:00:25]}  Ke3 {[%clk 0:01:40]} 55. Kg2 {[%clk 0:00:24]}  Kf4 {[%clk 0:01:40]} 56. Kh3 {[%clk 0:00:23]}  Kf3 {[%clk 0:01:41]} 57. Kh2 {[%clk 0:00:20]}  Kg4 {[%clk 0:01:42]} 0-1


[Site "https://www.chess.com"]